bitfinex-derivatives/quotes_SOLF0:USTF0_20250831
["timestamp","ask_amount","ask_price","bid_price","bid_amount"]
[1756623897716,7.85223847,203.5,203.43,7.87]
[1756623897921,7.85223847,203.5,203.44,4.69508309]
[1756623898122,7.85223847,203.5,203.46,7.87]
[1756623898818,5.45802459,203.49,203.37,7.87]
[1756623899022,5.45802459,203.49,203.35,2.39421388]
[1756623899023,5.45802459,203.49,203.39,7.87]
[1756623899220,5.45802459,203.49,203.41,7.87]
[1756623899421,2.39421388,203.47,203.42,9.26761779]
[1756623899626,2.39421388,203.47,203.43,17.13761779]
[1756623899825,2.39421388,203.47,203.44,4.69623195]
[1756623900024,2.39421388,203.47,203.45,4.69623195]
[1756623900224,2.39421388,203.47,203.46,4.69623195]
[1756623900627,2.39421388,203.47,203.4,7.87]
[1756623900826,2.39421388,203.47,203.41,9.27576425]
[1756623901026,2.39421388,203.47,203.4,7.87]
[1756623901027,7.85223847,203.47,203.42,9.27576425]
[1756623901226,7.85223847,203.47,203.43,9.27576425]
[1756623901428,7.85223847,203.47,203.44,4.70034683]
[1756623901627,7.85223847,203.47,203.45,4.70034683]
[1756623901829,7.85223847,203.47,203.4,7.87]
[1756623902029,7.85223847,203.47,203.41,9.27824477]
[1756623902323,5.45802459,203.45,203.42,9.27824477]
[1756623902518,5.45802459,203.45,203.43,4.70160101]
[1756623902725,5.45802459,203.45,203.33,7.87]
[1756623903020,5.45802459,203.45,203.35,7.87]
[1756623903221,5.45802459,203.45,203.32,2.39421388]
[1756623903222,5.45802459,203.45,203.37,7.87]
[1756623903423,5.45802459,203.45,203.38,9.28148937]
[1756623903625,5.45802459,203.45,203.4,7.87]
[1756623903932,7.85223847,203.45,203.42,7.87]
[1756623904128,7.85223847,203.45,203.43,4.703211]
[1756623904327,2.39421388,203.45,203.44,4.703211]
[1756623906033,2.89421388,203.45,203.29,7.87]
[1756623906227,2.39421388,203.37,203.3,4.5829088]
[1756623906530,2.39421388,203.37,203.25,7.87]
[1756623908128,2.39421388,203.34,203.25,7.87]
[1756623908325,2.39421388,203.36,203.25,7.87]
[1756623909435,8.21126662,203.42,203.3,2.39421388]
[1756623909436,5.47417775,203.4,203.3,2.39421388]
[1756623909638,5.47417775,203.43,203.33,2.39421388]
[1756623909835,7.86839163,203.45,203.34,7.84]
[1756623910330,5.47417775,203.45,203.34,7.84]
[1756623910632,8.21126662,203.48,203.37,7.84]
[1756623910633,7.86839163,203.48,203.37,7.84]
[1756623910830,2.39421388,203.48,203.37,7.84]
[1756623915341,5.47417775,203.5,203.39,2.39421388]
[1756623915537,5.47417775,203.5,203.4,7.84]
[1756623917341,7.86839163,203.51,203.4,7.84]
[1756623918545,5.47417775,203.51,203.4,7.84]
[1756623918745,7.86839163,203.51,203.4,7.84]
[1756623921750,5.47417775,203.52,203.4,7.84]
[1756623921947,5.47417775,203.53,203.41,4.55066699]
[1756623922149,5.47417775,203.53,203.43,7.84]
[1756623922350,5.47417775,203.53,203.45,7.84]
[1756623922550,5.47417775,203.53,203.46,4.55066699]
[1756623922752,5.47417775,203.53,203.45,7.84]
[1756623922753,5.47417775,203.53,203.47,4.55066699]
[1756623922953,5.47417775,203.53,203.48,12.39066699]
[1756623923250,5.47417775,203.53,203.49,4.55066699]
[1756623923451,5.47417775,203.53,203.48,7.84]
[1756623923648,5.47417775,203.53,203.49,4.5703994]
[1756623923849,5.47417775,203.53,203.48,7.84]
[1756623924048,5.47417775,203.53,203.49,4.5703994]
[1756623924245,5.47417775,203.53,203.48,7.84]
[1756623924643,5.47417775,203.53,203.43,7.84]
[1756623924844,5.47417775,203.53,203.45,7.84]
[1756623925050,5.47417775,203.53,203.46,4.56971544]
[1756623925243,5.47417775,203.53,203.47,4.56971544]
[1756623925450,5.47417775,203.53,203.48,4.56971544]
[1756623925643,5.47417775,203.53,203.45,7.84]
[1756623925844,5.47417775,203.53,203.46,4.56907355]
[1756623926043,5.47417775,203.53,203.47,4.56907355]
[1756623926353,25.66,203.52,203.48,4.56907355]
[1756623926653,25.66,203.52,203.46,7.84]
[1756623926856,25.66,203.52,203.47,12.40847028]
[1756623927054,25.66,203.52,203.48,4.56847028]
[1756623927248,25.66,203.52,203.43,7.84]
[1756623927453,2.39421388,203.51,203.44,4.56794913]
[1756623927654,2.39421388,203.51,203.45,4.56794913]
[1756623927848,2.39421388,203.51,203.46,4.56794913]
[1756623928050,2.39421388,203.51,203.47,4.56794913]
[1756623928353,2.39421388,203.51,203.48,4.56794913]
[1756623928553,2.39421388,203.51,203.45,7.84]
[1756623928756,2.39421388,203.51,203.47,7.84]
[1756623928958,2.39421388,203.51,203.48,4.56748231]
[1756623929152,2.39421388,203.51,203.47,7.84]
[1756623929352,2.39421388,203.51,203.48,4.56710787]
[1756623929552,2.39421388,203.51,203.47,7.84]
[1756623929752,7.86839163,203.54,203.49,7.84]
[1756623930156,120.8,203.53,203.49,7.84]
[1756623930553,120.8,203.53,203.43,7.84]
[1756623930756,120.8,203.53,203.45,7.84]
[1756623930954,120.8,203.53,203.46,4.56678656]
[1756623931155,120.8,203.53,203.47,4.56678656]
[1756623931454,120.8,203.53,203.48,12.40678656]
[1756623931652,120.8,203.53,203.43,7.84]
[1756623931848,7.86839163,203.54,203.45,7.84]
[1756623932053,120.8,203.53,203.46,4.56651623]
[1756623932254,120.8,203.53,203.47,4.56651623]
[1756623932457,120.8,203.53,203.48,4.56651623]
[1756623932657,120.8,203.53,203.43,7.84]
[1756623932855,120.8,203.53,203.45,7.84]
[1756623933057,120.8,203.53,203.46,4.5662097]
[1756623933251,120.8,203.53,203.47,4.5662097]
[1756623933457,120.8,203.53,203.48,12.4062097]
[1756623933652,120.8,203.53,203.48,7.84]
[1756623935755,7.86839163,203.54,203.48,7.84]
[1756623935960,120.78,203.52,203.48,7.84]
[1756623936961,7.86839163,203.54,203.48,7.84]
[1756623937158,120.78,203.53,203.48,7.84]
[1756623938359,120.78,203.52,203.48,7.84]
[1756623938556,120.76,203.51,203.43,7.46]
[1756623938761,120.76,203.51,203.45,7.46]
[1756623939062,120.76,203.51,203.47,7.46]
[1756623939257,120.76,203.51,203.42,2.39421388]
[1756623939461,120.76,203.51,203.44,7.46]
[1756623939664,5.47417775,203.55,203.46,7.46]
[1756623939959,5.47417775,203.55,203.45,4.56398706]
[1756623939960,5.47417775,203.55,203.48,7.46]
[1756623940157,120.76,203.54,203.49,4.56398706]
[1756623940354,120.76,203.54,203.51,7.46]
[1756623940558,120.76,203.54,203.52,12.02398706]
[1756623940760,120.76,203.54,203.53,4.56398706]
[1756623941059,120.76,203.54,203.52,7.46]
[1756623941256,120.76,203.56,203.53,4.56132799]
[1756623941461,120.76,203.56,203.54,12.02132799]
[1756623941764,120.76,203.56,203.54,7.46]
[1756623943963,120.76,203.56,203.49,7.46]
[1756623944165,120.76,203.56,203.5,4.55781209]
[1756623944361,120.76,203.56,203.52,7.46]
[1756623944563,120.76,203.56,203.53,4.55781209]
[1756623944762,120.76,203.56,203.52,7.46]
[1756623944962,120.76,203.56,203.53,4.55652582]
[1756623945162,120.76,203.56,203.52,7.46]
[1756623945360,120.76,203.56,203.48,7.46]
[1756623945563,120.76,203.56,203.49,4.55587554]
[1756623945763,120.76,203.56,203.5,4.55587554]
[1756623945963,120.76,203.56,203.51,4.55587554]
[1756623946169,120.76,203.56,203.52,4.55587554]
[1756623946368,120.76,203.56,203.48,7.46]
[1756623946562,120.76,203.56,203.49,4.55526337]
[1756623946768,120.76,203.56,203.5,4.55526337]
[1756623946968,120.76,203.56,203.51,4.55526337]
[1756623947171,120.76,203.56,203.48,7.46]
[1756623947369,120.76,203.56,203.49,4.55492788]
[1756623947570,120.76,203.56,203.5,4.55492788]
[1756623947769,120.76,203.56,203.51,4.55492788]
[1756623947972,120.76,203.56,203.48,7.46]
[1756623948168,120.76,203.56,203.49,4.55492788]
[1756623948462,120.76,203.56,203.5,4.55492788]
[1756623948668,120.76,203.56,203.51,4.55492788]
[1756623948867,120.76,203.56,203.48,7.46]
[1756623949067,120.76,203.56,203.49,4.55485707]
[1756623949272,120.76,203.56,203.5,4.55485707]
[1756623949469,120.76,203.56,203.51,4.55485707]
[1756623949673,120.76,203.56,203.48,7.46]
[1756623949869,120.76,203.56,203.49,4.55488996]
[1756623950071,120.76,203.56,203.5,4.55488996]
[1756623950270,120.76,203.56,203.51,4.55488996]
[1756623950574,120.76,203.56,203.48,7.46]
[1756623950876,120.76,203.56,203.49,4.55502554]
[1756623951078,120.76,203.56,203.5,4.55502554]
[1756623951374,120.76,203.56,203.51,4.55502554]
[1756623951575,120.76,203.56,203.37,12.31250452]
[1756623951576,2.39421388,203.54,203.38,7.46]
[1756623951776,2.39421388,203.54,203.41,7.46]
[1756623951972,2.39421388,203.54,203.43,7.46]
[1756623952172,2.39421388,203.54,203.44,4.5560535]
[1756623952474,2.39421388,203.54,203.45,4.5560535]
[1756623952674,2.39421388,203.54,203.46,4.5560535]
[1756623952872,2.39421388,203.54,203.47,4.5560535]
[1756623953072,2.39421388,203.54,203.48,4.5560535]
[1756623953374,2.39421388,203.54,203.49,4.5560535]
[1756623953578,2.39421388,203.54,203.43,7.46]
[1756623953875,2.39421388,203.54,203.44,4.55939455]
[1756623954174,2.39421388,203.54,203.45,4.55939455]
[1756623954375,2.39421388,203.54,203.46,4.55939455]
[1756623954674,2.39421388,203.54,203.47,4.55939455]
[1756623954972,120.7,203.53,203.48,4.55939455]
[1756623955172,120.7,203.53,203.49,4.55939455]
[1756623955372,120.7,203.53,203.5,4.55939455]
[1756623955573,120.7,203.53,203.52,7.46]
[1756623955773,120.7,203.53,203.52,12.01939455]
[1756623955972,2.39421388,203.58,203.52,12.01939455]
[1756623956273,120.7,203.54,203.53,4.55939455]
[1756623960771,120.7,203.54,203.48,7.46]
[1756623961069,120.68,203.57,203.5,7.46]
[1756623961271,120.68,203.57,203.52,7.46]
[1756623961476,120.68,203.57,203.53,12.02356445]
[1756623961677,120.68,203.57,203.54,4.56356445]
[1756623961875,120.68,203.57,203.55,4.56356445]
[1756623962078,2.39421388,203.61,203.53,7.46]
[1756623962079,5.47417775,203.62,203.56,4.56356445]
[1756623962373,120.68,203.61,203.57,4.56356445]
[1756623962578,120.68,203.61,203.58,4.56356445]
[1756623962774,120.68,203.61,203.53,7.46]
[1756623962974,120.68,203.61,203.54,4.56311928]
[1756623963174,120.68,203.61,203.55,4.56311928]
[1756623963375,120.68,203.61,203.56,4.56311928]
[1756623963576,120.68,203.61,203.57,4.56311928]
[1756623963878,120.68,203.61,203.58,4.56311928]
[1756623964078,120.68,203.61,203.53,7.46]
[1756623964279,120.68,203.61,203.54,4.5622074]
[1756623964578,120.68,203.61,203.55,4.5622074]
[1756623964775,120.68,203.61,203.56,4.5622074]
[1756623964971,120.68,203.61,203.57,4.5622074]
[1756623965179,120.68,203.61,203.58,4.5622074]
[1756623965484,330.3,203.63,203.53,7.46]
[1756623965682,123.05421388,203.62,203.54,4.56187985]
[1756623965976,123.05421388,203.62,203.55,4.56187985]
[1756623966181,123.05421388,203.62,203.56,4.56187985]
[1756623966378,123.05421388,203.62,203.57,4.56187985]
[1756623966578,123.05421388,203.62,203.58,4.56187985]
[1756623966779,123.05421388,203.62,203.53,7.46]
[1756623966981,123.05421388,203.62,203.54,4.56156435]
[1756623967184,120.66,203.62,203.55,4.56156435]
[1756623967379,123.05421388,203.62,203.56,4.56156435]
[1756623967579,123.05421388,203.62,203.57,4.56156435]
[1756623967884,123.05421388,203.62,203.58,4.56156435]
[1756623968082,123.05421388,203.62,203.59,4.56156435]
[1756623968282,123.05421388,203.62,203.53,7.46]
[1756623968482,123.05421388,203.62,203.54,4.56028401]
[1756623968683,123.05421388,203.62,203.55,4.56028401]
[1756623968883,123.05421388,203.62,203.56,4.56028401]
[1756623969084,123.05421388,203.62,203.57,4.56028401]
[1756623969285,123.05421388,203.62,203.58,4.56028401]
[1756623969484,123.05421388,203.62,203.53,7.46]
[1756623969782,123.05421388,203.62,203.54,4.55979014]
[1756623969982,123.05421388,203.62,203.55,4.55979014]
[1756623970183,123.05421388,203.62,203.56,4.55979014]
[1756623970378,120.64,203.61,203.57,4.55979014]
[1756623970583,120.64,203.61,203.58,4.55942145]
[1756623970787,120.64,203.61,203.53,7.46]
[1756623971082,120.64,203.61,203.54,4.55942145]
[1756623971282,120.64,203.61,203.55,4.55942145]
[1756623971482,120.64,203.61,203.56,4.55942145]
[1756623971683,120.64,203.61,203.57,4.55942145]
[1756623971885,120.64,203.61,203.58,4.55942145]
[1756623972076,120.64,203.61,203.53,7.46]
[1756623972277,120.64,203.61,203.54,4.5590404]
[1756623972475,120.64,203.61,203.55,4.5590404]
[1756623972686,120.64,203.61,203.56,4.5590404]
[1756623972986,2.39421388,203.62,203.57,4.5590404]
[1756623973186,120.64,203.61,203.58,4.5590404]
[1756623973387,120.64,203.61,203.54,7.27]
[1756623973685,120.64,203.61,203.55,4.5590229]
[1756623973892,120.64,203.61,203.54,7.27]
[1756623973893,120.64,203.61,203.56,4.5590229]
[1756623974077,120.64,203.61,203.57,4.5590229]
[1756623974278,120.64,203.61,203.58,4.5590229]
[1756623974488,120.64,203.61,203.54,7.27]
[1756623974688,120.64,203.61,203.55,4.55911993]
[1756623974888,120.64,203.61,203.56,4.55911993]
[1756623975088,120.64,203.61,203.57,4.55911993]
[1756623975288,120.64,203.61,203.58,4.55911993]
[1756623975589,120.64,203.61,203.54,7.27]
[1756623975789,120.64,203.61,203.55,4.55933274]
[1756623975986,120.62,203.6,203.56,4.55933274]
[1756623976188,120.62,203.6,203.57,4.55933274]
[1756623976389,120.62,203.6,203.58,4.55933274]
[1756623976687,120.62,203.6,203.54,7.27]
[1756623976887,120.62,203.6,203.55,11.82958102]
[1756623977090,120.62,203.6,203.56,4.55958102]
[1756623977290,120.62,203.6,203.57,4.55958102]
[1756623977591,120.62,203.6,203.55,7.27]
[1756623977890,120.62,203.6,203.56,4.56019571]
[1756623978092,120.62,203.6,203.57,4.56019571]
[1756623978389,120.62,203.6,203.58,4.56019571]
[1756623978591,120.62,203.6,203.55,7.27]
[1756623978791,120.62,203.6,203.57,7.27]
[1756623979091,120.62,203.6,203.58,4.56073175]
[1756623979294,120.62,203.6,203.59,4.56073175]
[1756623981290,120.62,203.6,203.57,7.27]
[1756623981595,120.62,203.6,203.58,4.56278455]
[1756623981895,120.62,203.6,203.59,4.56278455]
[1756623983196,332.69421388,203.63,203.59,4.56278455]
[1756623983395,120.6,203.62,203.6,4.56278455]
[1756623983596,120.6,203.62,203.5,7.27]
[1756623983795,120.6,203.62,203.52,9.66421388]
[1756623983997,120.6,203.62,203.54,7.27]
[1756623984296,120.6,203.62,203.56,7.27]
[1756623984497,120.6,203.62,203.58,7.27]
[1756623984697,120.6,203.62,203.59,4.5641109]
[1756623984897,120.6,203.62,203.6,4.5641109]
[1756623985098,120.6,203.62,203.58,7.27]
[1756623985293,330.3,203.63,203.6,7.27]
[1756623985492,330.3,203.63,203.61,4.56527633]
[1756623985493,120.58,203.62,203.61,4.56527633]
[1756623989698,120.58,203.62,203.61,11.83527633]
[1756623991499,120.58,203.62,203.61,4.56527633]
[1756623992095,120.58,203.62,203.61,4.61361197]
[1756623992496,120.54,203.62,203.61,11.88361197]
[1756623992696,120.54,203.62,203.61,4.61361197]
[1756623993001,120.54,203.62,203.61,4.61353447]
[1756623996296,120.54,203.62,203.56,7.27]
[1756623996495,120.54,203.62,203.58,7.27]
[1756623996695,120.54,203.62,203.59,4.61461232]
[1756623996897,120.54,203.62,203.6,4.61461232]
[1756623997099,120.54,203.62,203.61,4.61461232]
[1756623999405,120.54,203.62,203.61,4.62106878]
[1756623999708,5.47417775,203.67,203.62,7.94]
[1756623999906,120.52,203.66,203.63,4.62106878]
[1756624000109,120.52,203.66,203.62,7.94]
[1756624002609,120.52,203.66,203.55,2.39421388]
[1756624002805,120.52,203.66,203.56,7.94]
[1756624017330,1.52880715,203.64,203.57,1.52880715]
[1756624017723,120.52,203.66,203.58,7.94]
[1756624017724,1.52880715,203.65,203.58,7.94]
[1756624019229,120.52,203.66,203.58,9.46880715]
[1756624019423,1.52880715,203.65,203.58,9.46880715]
[1756624020329,1.52880715,203.65,203.58,7.94]
[1756624021326,1.52880715,203.63,203.56,1.52880715]
[1756624021532,1.52880715,203.63,203.57,7.94]
[1756624023230,1.52880715,203.64,203.57,7.94]
[1756624024529,121.94880715,203.66,203.59,1.52880715]
[1756624024722,121.94880715,203.66,203.6,7.94]
[1756624025529,1.52880715,203.66,203.6,7.94]
[1756624027031,1.52880715,203.65,203.6,7.94]
[1756624027334,1.52880715,203.65,203.59,7.94]
[1756624028532,1.52880715,203.65,203.59,9.46880715]
[1756624029033,1.52880715,203.66,203.59,9.46880715]
[1756624029230,1.52880715,203.66,203.59,7.94]
[1756624029731,5.47417775,203.68,203.59,7.94]
[1756624029932,1.52880715,203.65,203.59,7.94]
[1756624030530,1.52880715,203.65,203.59,9.46880715]
[1756624032627,1.52880715,203.65,203.54,4.12625822]
[1756624032628,331.70880715,203.71,203.64,7.31]
[1756624032834,452.08880715,203.71,203.64,7.31]
[1756624033435,452.08880715,203.71,203.65,4.55376976]
[1756624033733,452.08880715,203.71,203.66,11.86376976]
[1756624033935,452.08880715,203.71,203.66,7.31]
[1756624034135,452.08880715,203.71,203.67,4.55376976]
[1756624034334,452.08880715,203.71,203.68,4.55376976]
[1756624034533,452.08880715,203.71,203.69,4.55376976]
[1756624034732,452.08880715,203.71,203.7,4.55376976]
[1756624035437,450.56,203.71,203.7,4.55376976]
[1756624035939,452.08880715,203.71,203.7,4.55376976]
[1756624036436,330.18,203.71,203.7,4.55376976]
[1756624036638,450.54,203.71,203.7,4.55376976]
[1756624037040,120.36,203.71,203.7,4.55376976]
[1756624041543,1.52880715,203.72,203.7,4.55376976]
[1756624041741,121.86880715,203.72,203.71,4.55376976]
[1756624042333,120.34,203.72,203.71,4.55376976]
[1756624045048,120.34,203.72,203.71,4.57447051]
[1756624055655,120.34,203.72,203.71,4.52873552]
[1756624066559,120.34,203.72,203.71,4.53189176]
[1756624066965,5.47417775,203.78,203.71,4.53189176]
[1756624067167,1.52880715,203.76,203.72,11.89189176]
[1756624067371,1.52880715,203.76,203.73,4.53189176]
[1756624067663,1.52880715,203.76,203.74,4.53189176]
[1756624067863,1.52880715,203.76,203.72,7.36]
[1756624068168,1.52880715,203.76,203.73,4.53226841]
[1756624068367,1.52880715,203.76,203.74,4.53226841]
[1756624068663,1.52880715,203.76,203.75,4.53226841]
[1756624069455,121.74880715,203.77,203.75,4.53226841]
[1756624069653,121.74880715,203.77,203.72,7.36]
[1756624069859,121.74880715,203.77,203.73,4.53370253]
[1756624070160,121.74880715,203.77,203.74,4.53370253]
[1756624070361,121.74880715,203.77,203.75,4.53370253]
[1756624070561,121.74880715,203.77,203.72,7.36]
[1756624070763,121.74880715,203.77,203.73,4.53420632]
[1756624070965,121.74880715,203.77,203.74,4.53420632]
[1756624071162,121.74880715,203.77,203.72,7.36]
[1756624071163,121.74880715,203.77,203.75,4.53420632]
[1756624071362,121.74880715,203.77,203.72,7.36]
[1756624071555,121.74880715,203.77,203.73,4.53482421]
[1756624071755,121.74880715,203.77,203.74,4.53482421]
[1756624071756,1.52880715,203.75,203.74,4.53482421]
[1756624072157,1.52880715,203.75,203.69,7.36]
[1756624072362,1.52880715,203.73,203.69,7.36]
[1756624074367,1.52880715,203.73,203.67,7.36]
[1756624078465,7.0029849,203.75,203.67,7.36]
[1756624078763,7.0029849,203.75,203.68,1.52880715]
[1756624078969,7.0029849,203.75,203.69,7.36]
[1756624079670,7.0029849,203.75,203.7,4.77576245]
[1756624079870,7.0029849,203.75,203.71,12.13576245]
[1756624080170,1.52880715,203.75,203.72,4.77576245]
[1756624080371,1.52880715,203.75,203.73,4.77576245]
[1756624080672,1.52880715,203.75,203.71,7.36]
[1756624080673,1.52880715,203.75,203.74,4.77576245]
[1756624082072,7.0029849,203.75,203.74,4.77576245]
[1756624083072,5.47417775,203.75,203.74,4.77576245]
[1756624083271,7.0029849,203.75,203.74,4.77576245]
[1756624086774,7.0029849,203.75,203.71,7.36]
[1756624086975,7.0029849,203.75,203.72,11.96331013]
[1756624087175,7.0029849,203.75,203.73,4.60331013]
[1756624087375,7.0029849,203.75,203.74,4.60331013]
[1756624088976,5.47417775,203.75,203.74,11.90331013]
[1756624089177,5.47417775,203.78,203.74,11.90331013]
[1756624089377,7.0029849,203.77,203.75,4.60331013]
[1756624089679,7.0029849,203.77,203.76,4.60331013]
[1756624090380,1.52880715,203.77,203.76,4.60331013]
[1756624091482,5.47417775,203.78,203.76,4.60331013]
[1756624091681,5.47417775,203.78,203.77,11.90331013]
[1756624091882,8.21126662,203.8,203.77,11.90331013]
[1756624091883,125.59417775,203.79,203.77,11.90331013]
[1756624092180,120.12,203.79,203.78,11.90331013]
[1756624092378,5.47417775,203.8,203.79,7.3]
[1756624092579,1.52880715,203.83,203.79,11.90331013]
[1756624092782,1.52880715,203.83,203.8,11.90331013]
[1756624092973,1.52880715,203.83,203.81,4.60331013]
[1756624093178,1.52880715,203.83,203.82,4.60331013]
[1756624094682,1.52880715,203.83,203.82,11.90331013]
[1756624097688,1.52880715,203.83,203.82,7.3]
[1756624097888,1.52880715,203.83,203.82,11.95318663]
[1756624099993,1.52880715,203.83,203.82,7.3]
[1756624100188,1.52880715,203.83,203.82,11.95032572]
[1756624100792,1.52880715,203.83,203.82,7.3]
[1756624101693,1.52880715,203.83,203.82,11.94910417]
[1756624102094,1.52880715,203.83,203.82,7.3]
[1756624102794,1.52880715,203.83,203.82,11.95378029]
[1756624105192,1.52880715,203.83,203.82,4.65378029]
[1756624105398,2.02880715,203.83,203.77,7.3]
[1756624105593,1.52880715,203.78,203.77,7.3]
[1756624106697,1.52880715,203.78,203.71,7.3]
[1756624106899,1.52880715,203.72,203.71,7.3]
[1756624107492,1.52880715,203.72,203.61,7.3]
[1756624107698,1.52880715,203.68,203.61,7.3]
[1756624108502,1.52880715,203.66,203.61,7.3]
[1756624108701,3.98,203.7,203.61,7.3]
[1756624108904,1.52880715,203.66,203.61,7.3]
[1756624109402,2.38813786,203.69,203.61,7.3]
[1756624111117,2.38813786,203.66,203.56,7.3]
[1756624112499,5.47417775,203.74,203.61,7.3]
[1756624112703,348.86813786,203.75,203.61,7.3]
[1756624112910,346.48,203.75,203.61,7.3]
[1756624113210,2.38813786,203.74,203.61,7.3]
[1756624117406,2.38813786,203.74,203.63,7.3]
[1756624117610,2.38813786,203.74,203.64,4.58508631]
[1756624117806,2.38813786,203.74,203.66,7.86]
[1756624118010,2.38813786,203.74,203.67,4.58508631]
[1756624118310,2.38813786,203.74,203.68,4.58508631]
[1756624118510,2.38813786,203.74,203.69,12.44508631]
[1756624118709,2.38813786,203.74,203.7,4.58508631]
[1756624118910,2.38813786,203.74,203.69,7.86]
[1756624119110,2.38813786,203.74,203.7,4.58490806]
[1756624119310,2.38813786,203.74,203.69,7.86]
[1756624119510,2.38813786,203.74,203.7,4.58473309]
[1756624119713,2.38813786,203.74,203.69,7.86]
[1756624120013,2.38813786,203.74,203.66,7.86]
[1756624120212,2.38813786,203.74,203.67,4.58503697]
[1756624120414,2.38813786,203.74,203.66,7.86]
[1756624120605,2.38813786,203.71,203.67,12.44467889]
[1756624120810,121.12,203.7,203.67,7.86]
[1756624121212,121.12,203.7,203.61,2.38813786]
[1756624121412,121.12,203.7,203.62,12.44415511]
[1756624121611,121.12,203.7,203.63,4.58415511]
[1756624121811,121.12,203.7,203.64,4.58415511]
[1756624122013,121.12,203.7,203.65,4.58415511]
[1756624122213,121.12,203.7,203.67,7.86]
[1756624122409,121.12,203.7,203.62,7.86]
[1756624122712,121.12,203.7,203.64,7.86]
[1756624122908,121.12,203.7,203.65,4.58365114]
[1756624123116,121.12,203.7,203.67,7.86]
[1756624127023,123.50813786,203.7,203.67,7.86]
[1756624127321,123.50813786,203.7,203.59,7.86]
[1756624127520,123.50813786,203.7,203.61,7.86]
[1756624127819,123.50813786,203.7,203.63,7.86]
[1756624128019,329.9,203.75,203.65,7.86]
[1756624128223,120.94,203.74,203.67,7.86]
[1756624128418,120.94,203.74,203.68,4.58175667]
[1756624128615,120.94,203.74,203.7,7.86]
[1756624130413,120.94,203.74,203.56,4.12625822]
[1756624130611,120.94,203.74,203.62,7.86]
[1756624130822,120.94,203.74,203.64,7.86]
[1756624131020,120.94,203.74,203.66,7.86]
[1756624131220,120.94,203.74,203.67,4.58085518]
[1756624131421,120.94,203.74,203.68,4.58085518]
[1756624131614,2.38813786,203.78,203.7,7.86]
[1756624131815,121.06,203.77,203.71,4.58085518]
[1756624132020,121.06,203.77,203.72,12.44085518]
[1756624132215,121.06,203.77,203.72,7.86]
[1756624132724,2.38813786,203.78,203.72,7.86]
[1756624132920,121.48,203.77,203.73,4.58367193]
[1756624133125,121.48,203.77,203.72,7.86]
[1756624133320,121.48,203.77,203.73,4.5835405]
[1756624133525,121.48,203.77,203.72,7.86]
[1756624133725,121.48,203.77,203.73,4.58353212]
[1756624133927,121.48,203.77,203.72,7.86]
[1756624134118,121.48,203.77,203.73,4.58350321]
[1756624134321,121.48,203.77,203.72,7.86]
[1756624134526,121.48,203.77,203.73,4.58350321]
[1756624134726,121.48,203.77,203.72,7.86]
[1756624134927,121.48,203.77,203.73,4.58353143]
[1756624135227,121.48,203.77,203.72,7.86]
[1756624135421,121.48,203.77,203.73,4.58351751]
[1756624135621,121.48,203.77,203.72,7.86]
[1756624135920,121.48,203.77,203.73,4.58351751]
[1756624136116,121.48,203.77,203.72,7.86]
[1756624136319,121.48,203.77,203.73,4.58350371]
[1756624136521,121.48,203.77,203.72,7.86]
[1756624136722,121.48,203.77,203.73,4.58350371]
[1756624136922,121.48,203.77,203.72,7.86]
[1756624137123,121.48,203.77,203.73,4.58350371]
[1756624137322,121.48,203.77,203.72,7.86]
[1756624137523,121.48,203.77,203.73,4.58359768]
[1756624137823,121.48,203.77,203.72,7.86]
[1756624138018,121.48,203.77,203.73,4.58359768]
[1756624138326,121.48,203.77,203.72,7.86]
[1756624138625,121.48,203.77,203.73,4.58444134]